fUSD/lending_fUSD_20240327
["ID","MTS","AMOUNT","RATE_DAILY","PERIOD"]
[320707482,1711524648358,-500.0,0.00054794,120]
[320707483,1711524648367,-525.12,0.00054794,120]
[320707484,1711524648377,-501.94503453,0.00054794,120]
[320707485,1711524648387,-528.22,0.00054794,120]
[320707486,1711524648397,-491.324185,0.00054794,30]
[320707487,1711524648407,-491.324185,0.00054794,30]
[320707488,1711524648416,-549.54,0.00054794,120]
[320707489,1711524648425,-503.00915858,0.00054794,120]
[320707490,1711524648434,-1225.28,0.00054794,120]
[320707491,1711524648443,-500.0,0.00054794,120]
[320707492,1711524648454,-491.324185,0.00054794,30]
[320707493,1711524648464,-518.78811732,0.00054794,120]
[320707494,1711524648474,-491.324185,0.00054794,30]
[320707495,1711524648483,-1533.01,0.00054794,120]
[320707496,1711524648492,-500.0,0.00054794,120]
[320707497,1711524648501,-500.0,0.00054794,120]
[320707498,1711524648510,-500.0,0.00054794,120]
[320707499,1711524648519,-500.0,0.00054794,120]
[320707500,1711524648528,-500.0,0.00054794,120]
[320707501,1711524648538,-210.35707632,0.00054794,120]
[320707502,1711524648547,-500.0,0.00054794,120]
[320707503,1711524648556,-1081.84,0.00054794,120]
[320707504,1711524648566,-500.0,0.00054794,120]
[320707505,1711524648576,-500.0,0.00054794,120]
[320707506,1711524648585,-585.09492114,0.00054794,120]
[320707507,1711524648595,-500.0,0.00054794,120]
[320707508,1711524648604,-850.37,0.00054794,120]
[320707509,1711524648612,-500.0,0.00054794,120]
[320707510,1711524648622,-542.10370517,0.00054794,120]
[320707511,1711524648633,-500.0,0.00054794,120]
[320707512,1711524648642,-500.0,0.00054794,120]
[320707513,1711524648652,-151.0,0.00054794,120]
[320707514,1711524648661,-1237.02,0.00054794,120]
[320707515,1711524648670,-151.0,0.00054794,120]
[320707516,1711524648680,-317.61718621,0.00054794,120]
[320707517,1711524648689,-500.0,0.00054794,120]
[320707518,1711524648699,-500.0,0.00054794,120]
[320707519,1711524648709,-332.60900955,0.00054794,120]
[320707520,1711524648718,-500.0,0.00054794,120]
[320707521,1711524648728,-542.767787,0.00054794,120]
[320707522,1711524648737,-500.0,0.00054794,120]
[320707523,1711524648747,-542.767787,0.00054794,120]
[320707524,1711524648756,-500.0,0.00054794,120]
[320707525,1711524648766,-535.17,0.00054794,120]
[320707526,1711524648775,-523.23172334,0.00054794,120]
[320707527,1711524648785,-542.767787,0.00054794,120]
[320707528,1711524648795,-542.767787,0.00054794,120]
[320707529,1711524648804,-500.0,0.00054794,120]
[320707530,1711524648814,-876.06,0.00054794,120]
[320707531,1711524648823,-500.0,0.00054794,120]
[320707532,1711524648833,-500.0,0.00054794,120]
[320707533,1711524648842,-500.0,0.00054794,120]
[320707534,1711524648851,-500.0,0.00054794,120]
[320707535,1711524648861,-500.0,0.00054794,120]
[320707536,1711524648872,-500.0,0.00054794,120]
[320707537,1711524648883,-500.0,0.00054794,120]
[320707538,1711524648895,-500.0,0.00054794,120]
[320707539,1711524648905,-423.4,0.00054794,120]
[320707540,1711524648914,-500.0,0.00054794,120]
[320707541,1711524648923,-717.03,0.00054794,120]
[320707542,1711524648934,-595.44,0.00054794,120]
[320707543,1711524648943,-513.24818876,0.00054794,120]
[320707544,1711524648952,-518.3866882,0.00054794,120]
[320707545,1711524648962,-649.78,0.00054794,120]
[320707546,1711524648972,-500.0,0.00054794,120]
[320707547,1711524648981,-500.0,0.00054794,120]
[320707548,1711524648990,-1253.021096,0.00054794,120]
[320707549,1711524649000,-1253.021096,0.00054794,120]
[320707550,1711524649009,-500.0,0.00054794,120]
[320707551,1711524649019,-935.57,0.00054794,120]
[320707552,1711524649029,-1366.31,0.00054794,120]
[320707553,1711524649038,-1253.021096,0.00054794,120]
[320707554,1711524649047,-822.65,0.00054794,120]
[320707555,1711524649057,-1253.021096,0.00054794,120]
[320707556,1711524649065,-500.0,0.00054794,120]
[320707557,1711524649075,-151.0,0.00054794,120]
[320707558,1711524649084,-151.0,0.00054794,120]
[320707559,1711524649094,-553.13,0.00054794,120]
[320707560,1711524649103,-823.71,0.00054794,120]
[320707561,1711524649112,-1000.0,0.00054794,120]
[320707562,1711524649121,-668.08,0.00054794,120]
[320707563,1711524649132,-500.0,0.00054794,120]
[320707564,1711524649142,-999.87,0.00054794,120]
[320707565,1711524649151,-970.5,0.00054794,120]
[320707566,1711524649160,-512.43477721,0.00054794,120]
[320707567,1711524649169,-500.0,0.00054794,120]
[320707568,1711524649179,-500.0,0.00054794,120]
[320707569,1711524649188,-1454.5,0.00054794,120]
[320707570,1711524649198,-511.62360046,0.00054794,120]
[320707571,1711524649207,-500.0,0.00054794,120]
[320707572,1711524649216,-500.0,0.00054794,120]
[320707573,1711524649226,-579.58,0.00054794,120]
[320707574,1711524649235,-613.51475155,0.00054794,120]
[320707575,1711524649244,-1242.46,0.00054794,120]
[320707576,1711524649253,-661.93,0.00054794,120]
[320707577,1711524649264,-151.0,0.00054794,120]
[320707578,1711524649274,-517.3403799,0.00054794,120]
[320707579,1711524649284,-151.0,0.00054794,120]
[320707580,1711524649293,-1063.66,0.00054794,120]
[320707581,1711524649303,-500.0,0.00054794,120]
[320707582,1711524649312,-151.0,0.00054794,120]
[320707583,1711524649321,-151.0,0.00054794,120]
[320707584,1711524649330,-500.0,0.00054794,120]
[320707585,1711524649340,-343.25092549,0.00054794,120]
[320707586,1711524649349,-500.0,0.00054794,120]
[320707587,1711524649358,-500.0,0.00054794,120]
[320707588,1711524649367,-500.0,0.00054794,120]
[320707589,1711524649377,-878.86,0.00054794,120]
[320707590,1711524649389,-500.0,0.00054794,120]
[320707591,1711524649398,-500.0,0.00054794,120]
[320707592,1711524649407,-500.0,0.00054794,120]
[320707593,1711524649417,-500.0,0.00054794,120]
[320707594,1711524649426,-500.0,0.00054794,120]
[320707595,1711524649435,-500.0,0.00054794,120]
[320707596,1711524649444,-500.0,0.00054794,120]
[320707597,1711524649453,-584.66122252,0.00054794,120]
[320707598,1711524649462,-201.505912,0.00054794,120]
[320707599,1711524649471,-201.505912,0.00054794,120]
[320707600,1711524649480,-500.0,0.00054794,120]
[320707601,1711524649489,-500.0,0.00054794,120]
[320707602,1711524649499,-506.73207416,0.00054794,120]
[320707603,1711524649508,-201.505912,0.00054794,120]
[320707604,1711524649517,-201.505912,0.00054794,120]
[320707605,1711524649527,-500.0,0.00054794,120]
[320707606,1711524649536,-786.15,0.00054794,120]
[320707607,1711524649545,-646.09914913,0.00054794,120]
[320707608,1711524649555,-800.78,0.00054794,120]
[320707609,1711524649564,-500.0,0.00054794,120]
[320707610,1711524649573,-2593.77,0.00054794,120]
[320707611,1711524649582,-151.0,0.00054794,120]
[320707612,1711524649591,-500.0,0.00054794,120]
[320707613,1711524649600,-500.0,0.00054794,120]
[320707614,1711524649609,-151.0,0.00054794,120]
[320707615,1711524649618,-500.0,0.00054794,120]
[320707616,1711524649627,-500.0,0.00054794,120]
[320707617,1711524649638,-637.29,0.00054794,120]
[320707618,1711524649648,-917.83,0.00054794,120]
[320707619,1711524649657,-500.0,0.00054794,120]
[320707620,1711524649667,-926.8,0.00054794,120]
[320707621,1711524649676,-162.304507,0.00054794,120]
[320707622,1711524649686,-552.13264273,0.00054794,120]
[320707623,1711524649696,-500.0,0.00054794,120]
[320707624,1711524649705,-500.0,0.00054794,120]
[320707625,1711524649715,-500.0,0.00054794,120]
[320707626,1711524649724,-151.0,0.00054794,120]
[320707627,1711524649734,-1089.49,0.00054794,120]
[320707628,1711524649743,-151.0,0.00054794,120]
[320707629,1711524649753,-706.7,0.00054794,120]
[320707630,1711524649763,-1320.22,0.00054794,120]
[320707631,1711524649772,-564.03,0.00054794,120]
[320707632,1711524649782,-513.53396653,0.00054794,120]
[320707633,1711524649791,-500.0,0.00054794,120]
[320707634,1711524649801,-500.0,0.00054794,120]
[320707635,1711524649810,-745.76,0.00054794,120]
[320707636,1711524649822,-199.75813086,0.00054794,120]
[320707637,1711524649832,-827.87,0.00054794,120]
[320707638,1711524649842,-449.895944,0.00054794,120]
[320707639,1711524649853,-449.895944,0.00054794,120]
[320707640,1711524649863,-1629.52,0.00054794,120]
[320707641,1711524649876,-711.59,0.00054794,120]
[320707642,1711524649889,-506.9037272,0.00054794,120]
[320707643,1711524649899,-500.0,0.00054794,120]
[320707644,1711524649910,-810.4,0.00054794,120]
[320707645,1711524650051,-526.4005186,0.00054794,120]
[320707646,1711524650063,-449.895944,0.00054794,120]
[320707647,1711524650072,-449.895944,0.00054794,120]
[320707648,1711524650081,-512.91807151,0.00054794,120]
[320707649,1711524650091,-218.726235,0.00054794,120]
[320707650,1711524650101,-500.0,0.00054794,120]
[320707651,1711524650110,-218.726235,0.00054794,120]
[320707652,1711524650119,-1000.42,0.00054794,120]
[320707653,1711524650128,-500.0,0.00054794,120]
[320707654,1711524650138,-500.0,0.00054794,120]
[320707655,1711524650148,-218.726235,0.00054794,120]
[320707656,1711524650156,-218.726235,0.00054794,120]
[320707657,1711524650166,-500.0,0.00054794,120]
[320707658,1711524650176,-555.74,0.00054794,120]
[320707659,1711524650185,-500.0,0.00054794,120]
[320707660,1711524650195,-735.21,0.00054794,120]
[320707661,1711524650204,-1200.620511,0.00054794,120]
[320707662,1711524650214,-1200.620511,0.00054794,120]
[320707663,1711524650223,-500.0,0.00054794,120]
[320707664,1711524650232,-500.0,0.00054794,120]
[320707665,1711524650242,-540.245892,0.00054794,120]
[320707666,1711524650251,-540.245892,0.00054794,120]
[320707667,1711524650261,-1484.09,0.00054794,120]
[320707668,1711524650270,-1200.620511,0.00054794,120]
[320707669,1711524650279,-1200.620511,0.00054794,120]
[320707670,1711524650289,-540.245892,0.00054794,120]
[320707671,1711524650298,-540.245892,0.00054794,120]
[320707672,1711524650307,-500.0,0.00054794,120]
[320707673,1711524650316,-502.84282416,0.00054794,120]
[320707674,1711524650325,-151.0,0.00054794,120]
[320707675,1711524650334,-910.98,0.00054794,120]
[320707676,1711524650343,-151.0,0.00054794,120]
[320707677,1711524650353,-577.96,0.00054794,120]
[320707678,1711524650362,-534.03552622,0.00054794,120]
[320707679,1711524650371,-151.0,0.00054794,7]
[320707680,1711524650382,-151.0,0.00054794,7]
[320707681,1711524650392,-500.58,0.00054794,120]
[320707682,1711524650401,-967.31,0.00054794,120]
[320707683,1711524650411,-889.49,0.00054794,120]
[320707684,1711524650420,-698.22,0.00054794,120]
[320707685,1711524650429,-500.0,0.00054794,120]
[320707686,1711524650438,-500.0,0.00054794,120]
[320707687,1711524650447,-500.0,0.00054794,120]
[320707688,1711524650457,-500.0,0.00054794,120]
[320707689,1711524650466,-523.683972,0.00054794,120]
[320707690,1711524650476,-500.0,0.00054794,120]
[320707691,1711524650485,-523.683972,0.00054794,120]
[320707692,1711524650494,-500.0,0.00054794,120]
[320707693,1711524650503,-500.0,0.00054794,120]
[320707694,1711524650512,-523.683972,0.00054794,120]
[320707695,1711524650521,-523.683972,0.00054794,120]
[320707696,1711524650531,-500.0,0.00054794,120]
[320707697,1711524650541,-839.66,0.00054794,120]
[320707698,1711524650550,-530.09,0.00054794,120]
[320707699,1711524650559,-647.79,0.00054794,120]
[320707700,1711524650569,-886.98,0.00054794,120]
[320707701,1711524650579,-500.0,0.00054794,120]
[320707702,1711524650588,-500.0,0.00054794,120]
[320707703,1711524650597,-202.7546291,0.00054794,120]
[320707704,1711524650607,-500.0,0.00054794,120]
[320707705,1711524650616,-500.0,0.00054794,120]
[320707706,1711524650625,-660.04,0.00054794,30]
[320707707,1711524650637,-151.0,0.00054794,60]
[320707708,1711524650646,-151.0,0.00054794,60]
[320707709,1711524650655,-610.62,0.00054794,120]
[320707710,1711524650664,-500.0,0.00054794,120]
[320707711,1711524650674,-500.0,0.00054794,120]
[320707712,1711524650683,-151.0,0.00054794,60]
[320707713,1711524650692,-500.0,0.00054794,120]
[320707714,1711524650701,-151.0,0.00054794,60]
[320707715,1711524650710,-500.0,0.00054794,120]
[320707716,1711524650720,-510.87300071,0.00054794,120]
[320707717,1711524650729,-1521.44,0.00054794,120]
[320707718,1711524650738,-500.0,0.00054794,120]
[320707719,1711524650748,-500.0,0.00054794,120]
[320707720,1711524650757,-529.19440628,0.00054794,120]
[320707721,1711524650767,-764.98,0.00054794,120]
[320707722,1711524650776,-510.2191613,0.00054794,120]
[320707723,1711524650786,-500.0,0.00054794,120]
[320707724,1711524650795,-500.0,0.00054794,120]
[320707725,1711524650804,-500.0,0.00054794,120]
[320707726,1711524650813,-500.0,0.00054794,120]
[320707727,1711524650822,-500.0,0.00054794,7]
[320707728,1711524650831,-720.11,0.00054794,120]
[320707729,1711524650840,-262.42136,0.00054794,120]
[320707730,1711524650850,-500.0,0.00054794,120]
[320707731,1711524650859,-500.0,0.00054794,120]
[320707732,1711524650869,-1383.35,0.00054794,120]
[320707733,1711524650879,-885.31,0.00054794,120]
[320707734,1711524650891,-500.0,0.00054794,120]
[320707735,1711524650901,-500.0,0.00054794,120]
[320707736,1711524650911,-499.57134554,0.00054794,120]
[320707737,1711524650922,-155.67485212,0.00054794,120]
[320707738,1711524650931,-515.80195321,0.00054794,120]
[320707739,1711524650940,-785.51,0.00054794,120]
[320707740,1711524650950,-516.62434846,0.00054794,120]
[320707741,1711524650959,-416.48343056,0.00054794,120]
[320707742,1711524650969,-500.0,0.00054794,120]
[320707743,1711524650979,-500.0,0.00054794,120]
[320707744,1711524650989,-515.23902599,0.00054794,120]
[320707745,1711524650998,-1237.35,0.00054794,120]
[320707746,1711524651008,-628.98,0.00054794,120]
[320707747,1711524651017,-500.0,0.00054794,120]
[320707748,1711524651027,-153.061295,0.00054794,120]
[320707749,1711524651037,-501.61397127,0.00054794,120]
[320707750,1711524651046,-611.8,0.00054794,120]
[320707751,1711524651055,-596.95219667,0.00054794,120]
[320707752,1711524651065,-510.04,0.00054794,120]
[320707753,1711524651075,-576.5,0.00054794,120]
[320707754,1711524651085,-515.1488356,0.00054794,120]
[320707755,1711524651095,-513.65069676,0.00054794,120]
[320707756,1711524651104,-511.12251,0.00054794,120]
[320707757,1711524651116,-517.98,0.00054794,120]
[320707758,1711524651126,-962.85,0.00054794,120]
[320707759,1711524651137,-511.0248823,0.00054794,120]
[320707760,1711524651147,-500.0,0.00054794,120]
[320707761,1711524651157,-581.72,0.00054794,120]
[320707762,1711524651167,-500.0,0.00054794,120]
[320707763,1711524651177,-639.3,0.00054794,120]
[320707764,1711524651186,-1358.55,0.00054794,120]
[320707765,1711524651196,-500.0,0.00054794,120]
[320707766,1711524651206,-500.0,0.00054794,120]
[320707767,1711524651215,-500.0,0.00054794,120]
[320707768,1711524651225,-262.85771439,0.00054794,120]
[320707769,1711524651234,-511.99571965,0.00054794,120]
[320707770,1711524651244,-500.0,0.00054794,120]
[320707771,1711524651253,-511.14837168,0.00054794,120]
[320707772,1711524651262,-500.0,0.00054794,120]
[320707773,1711524651271,-510.92,0.00054794,120]
[320707774,1711524651281,-898.75,0.00054794,120]
[320707775,1711524651290,-514.81281052,0.00054794,120]
[320707776,1711524651299,-752.08,0.00054794,120]
[320707777,1711524651310,-500.0,0.00054794,120]
[320707778,1711524651319,-517.71934684,0.00054794,120]
[320707779,1711524651329,-500.0,0.00054794,120]
[320707780,1711524651338,-177.051292,0.00054794,120]
[320707781,1711524651348,-177.051292,0.00054794,120]
[320707782,1711524651358,-1642.74,0.00054794,120]
[320707783,1711524651367,-877.388448,0.00054794,120]
[320707784,1711524651376,-877.388448,0.00054794,120]
[320707785,1711524651387,-177.051292,0.00054794,120]
[320707786,1711524651397,-500.0,0.00054794,120]
[320707787,1711524651407,-177.051292,0.00054794,120]
[320707788,1711524651417,-500.0,0.00054794,120]
[320707789,1711524651428,-776.16,0.00054794,120]
[320707790,1711524651439,-500.0,0.00054794,120]
[320707791,1711524651449,-1026.67,0.00054794,120]
[320707792,1711524651459,-877.388448,0.00054794,120]
[320707793,1711524651468,-877.388448,0.00054794,120]
[320707794,1711524651477,-192.42476,0.00054794,120]
[320707795,1711524651486,-192.42476,0.00054794,120]
[320707796,1711524651495,-500.0,0.00054794,120]
[320707797,1711524651505,-500.0,0.00054794,120]
[320707798,1711524651515,-192.42476,0.00054794,120]
[320707799,1711524651525,-158.23368279,0.00054794,120]
[320707800,1711524651534,-192.42476,0.00054794,120]
[320707801,1711524651545,-500.0,0.00054794,120]
[320707802,1711524651557,-500.0,0.00054794,120]
[320707803,1711524651566,-500.0,0.00054794,120]
[320707804,1711524651575,-500.0,0.00054794,120]
[320707805,1711524651585,-553.22,0.00054794,120]
[320707806,1711524651594,-500.0,0.00054794,120]
[320707807,1711524651603,-500.0,0.00054794,120]
[320707808,1711524651612,-182.384651,0.00054794,120]
[320707809,1711524651622,-182.384651,0.00054794,120]
[320707810,1711524651630,-504.27832786,0.00054794,120]
[320707811,1711524651641,-1140.35,0.00054794,120]
[320707812,1711524651650,-182.384651,0.00054794,120]
[320707813,1711524651658,-182.384651,0.00054794,120]
[320707814,1711524651667,-511.98350614,0.00054794,120]
[320707815,1711524651677,-717.86,0.00054794,120]
[320707816,1711524651686,-151.0,0.00054794,120]
[320707817,1711524651696,-151.0,0.00054794,120]
[320707818,1711524651705,-505.44180443,0.00054794,120]
[320707819,1711524651714,-151.0,0.00054794,120]
[320707820,1711524651723,-648.31,0.00054794,120]
[320707821,1711524651734,-507.00075324,0.00054794,120]
[320707822,1711524651744,-519.66914732,0.00054794,120]
[320707823,1711524651755,-1527.75,0.00054794,120]
[320707824,1711524651765,-523.63,0.00054794,120]
[320707825,1711524651774,-500.0,0.00054794,120]
[320707826,1711524651783,-500.0,0.00054794,120]
[320707827,1711524651792,-466.5556635,0.00054794,120]
[320707828,1711524651801,-160.83275408,0.00054794,120]
[320707829,1711524651811,-500.0,0.00054794,120]
[320707830,1711524651821,-966.82,0.00054794,120]
[320707831,1711524651832,-500.0,0.00054794,120]
[320707832,1711524651842,-1494.16,0.00054794,120]
[320707833,1711524651852,-12292.31,0.00054794,120]
[320707834,1711524651863,-2200.85,0.00054794,120]
[320707835,1711524651874,-353.081644,0.00054794,120]
[320707836,1711524651884,-353.081644,0.00054794,120]
[320707837,1711524651896,-353.081644,0.00054794,120]
[320707838,1711524651906,-500.0,0.00054794,120]
[320707839,1711524651915,-512.16743347,0.00054794,120]
[320707840,1711524651924,-500.0,0.00054794,120]
[320707841,1711524651934,-353.081644,0.00054794,120]
[320707842,1711524651943,-353.081644,0.00054794,120]
[320707843,1711524651953,-527.92543312,0.00054794,120]
[320707844,1711524651962,-353.081644,0.00054794,120]
[320707845,1711524651971,-500.0,0.00054794,120]
[320707846,1711524651981,-521.24613784,0.00054794,120]
[320707847,1711524651990,-603.07090202,0.00054794,120]
[320707848,1711524651999,-151.0,0.00054794,120]
[320707849,1711524652132,-151.0,0.00054794,120]
[320707850,1711524652145,-2219.36,0.00054794,120]
[320707851,1711524652155,-511.89091917,0.00054794,120]
[320707852,1711524652164,-151.0,0.00054794,120]
[320707853,1711524652173,-626.3712163,0.00054794,120]
[320707854,1711524652182,-892.98,0.00054794,120]
[320707855,1711524652192,-879.87,0.00054794,120]
[320707856,1711524652202,-503.15844507,0.00054794,120]
[320707857,1711524652212,-1648.12,0.00054794,120]
[320707858,1711524652222,-1825.26,0.00054794,120]
[320707859,1711524652231,-490.39318654,0.00054794,120]
[320707860,1711524652241,-151.0,0.00054794,120]
[320707861,1711524652250,-288.807847,0.00054794,120]
[320707862,1711524652260,-2945.07,0.00054794,120]
[320707863,1711524652270,-503.65823936,0.00054794,120]
[320707864,1711524652279,-151.0,0.00054794,120]
[320707865,1711524652289,-151.0,0.00054794,120]
[320707866,1711524652298,-151.0,0.00054794,120]
[320707867,1711524652307,-500.0,0.00054794,120]
[320707868,1711524652316,-990.98,0.00054794,120]
[320707869,1711524652325,-500.0,0.00054794,120]
[320707870,1711524652334,-151.0,0.00054794,120]
[320707871,1711524652343,-151.0,0.00054794,120]
[320707872,1711524652353,-151.0,0.00054794,120]
[320707873,1711524652364,-382.47782305,0.00054794,120]
[320707874,1711524652374,-500.0,0.00054794,120]
[320707875,1711524652383,-785.14,0.00054794,120]
[320707876,1711524652394,-500.0,0.00054794,120]
[320707877,1711524652403,-151.0,0.00054794,120]
[320707878,1711524652412,-500.0,0.00054794,120]
[320707879,1711524652421,-500.0,0.00054794,15]
[320707880,1711524652430,-151.0,0.00054794,120]
[320707881,1711524652439,-151.0,0.00054794,120]
[320707882,1711524652448,-7202.75,0.00054794,120]
[320707883,1711524652457,-500.0,0.00054794,120]
[320707884,1711524652466,-1502.38,0.00054794,120]
[320707885,1711524652476,-505.723978,0.00054794,120]
[320707886,1711524652485,-500.0,0.00054794,120]
[320707887,1711524652494,-351.74949912,0.00054794,120]
[320707888,1711524652505,-9760.79,0.00054794,120]
[320707889,1711524652515,-151.0,0.00054794,120]
[320707890,1711524652524,-151.0,0.00054794,120]
[320707891,1711524652533,-151.0,0.00054794,120]
[320707892,1711524652542,-96756.72,0.00054794,120]
[320707893,1711524652551,-517.13480582,0.00054794,120]
[320707894,1711524652560,-512.62205961,0.00054794,120]
[320707895,1711524652570,-500.0,0.00054794,120]
[320707896,1711524652579,-521.12145557,0.00054794,120]
[320707897,1711524652587,-500.0,0.00054794,120]
[320707898,1711524652597,-736.9,0.00054794,120]
[320707899,1711524652606,-1317.29,0.00054794,120]
[320707900,1711524652615,-1532.69,0.00054794,120]
[320707901,1711524652624,-1179.67,0.00054794,120]
[320707902,1711524652634,-500.0,0.00054794,120]
[320707903,1711524652646,-6840.5,0.00054794,120]
[320707904,1711524652656,-6247.68,0.00054794,120]
[320707905,1711524652667,-500.0,0.00054794,120]
[320707906,1711524652677,-500.0,0.00054794,120]
[320707907,1711524652688,-514.50622581,0.00054794,120]
[320707908,1711524652699,-500.0,0.00054794,120]
[320707909,1711524652709,-500.0,0.00054794,120]
[320707910,1711524652719,-500.0,0.00054794,120]
[320707911,1711524652728,-1215.13,0.00054794,120]
[320707912,1711524652738,-500.0,0.00054794,120]
[320707913,1711524652748,-5352.23,0.00054794,120]
[320707914,1711524652758,-500.0,0.00054794,120]
[320707915,1711524652767,-518.38648113,0.00054794,120]
[320707916,1711524652777,-510.3,0.00054794,120]
[320707917,1711524652786,-500.0,0.00054794,120]
[320707918,1711524652796,-1070.5,0.00054794,120]
[320707919,1711524652805,-500.0,0.00054794,120]
[320707920,1711524652815,-514.39668033,0.00054794,120]
[320707921,1711524652824,-1651.01,0.00054794,120]
[320707922,1711524652833,-500.0,0.00054794,120]
[320707923,1711524652843,-500.0,0.00054794,120]
[320707924,1711524652853,-685.87,0.00054794,120]
[320707925,1711524652863,-685.87,0.00054794,120]
[320707926,1711524652874,-685.87,0.00054794,120]
[320707927,1711524652887,-685.87,0.00054794,120]
[320707928,1711524652897,-8617.51,0.00054794,120]
[320707929,1711524652907,-685.87,0.00054794,120]
[320707930,1711524652918,-685.87,0.00054794,120]
[320707931,1711524652928,-685.87,0.00054794,120]
[320707932,1711524652938,-685.87,0.00054794,120]
[320707933,1711524652949,-151.0,0.00054794,120]
[320707934,1711524652958,-685.87,0.00054794,120]
[320707935,1711524652970,-500.0,0.00054794,120]
[320707936,1711524652980,-685.87,0.00054794,120]
[320707937,1711524652990,-151.0,0.00054794,120]
[320707938,1711524653001,-685.87,0.00054794,120]
[320707939,1711524653010,-151.0,0.00054794,120]
[320707940,1711524653019,-685.87,0.00054794,120]
[320707941,1711524653029,-685.87,0.00054794,120]
[320707942,1711524653038,-685.87,0.00054794,120]
[320707943,1711524653048,-685.87,0.00054794,120]
[320707944,1711524653056,-500.0,0.00054794,120]
[320707945,1711524653067,-685.87,0.00054794,120]
[320707946,1711524653076,-685.87,0.00054794,120]
[320707947,1711524653086,-685.87,0.00054794,120]
[320707948,1711524653095,-500.0,0.00054794,120]
[320707949,1711524653105,-685.87,0.00054794,120]
[320707950,1711524653115,-685.87,0.00054794,120]
[320707951,1711524653125,-685.87,0.00054794,120]
[320707952,1711524653134,-685.87,0.00054794,120]
[320707953,1711524653144,-685.87,0.00054794,120]
[320707954,1711524653154,-527.97,0.00054794,120]
[320707955,1711524653164,-151.0,0.00054794,120]
[320707956,1711524653173,-154.850818,0.00054794,120]
[320707957,1711524653184,-685.90846692,0.00054794,120]
[320707958,1711524653193,-719.16,0.00054794,120]
[320707959,1711524653203,-1887.99,0.00054794,120]
[320707960,1711524653212,-500.0,0.00054794,120]
[320707961,1711524653222,-1777.32,0.00054794,120]
[320707962,1711524653232,-500.0,0.00054794,120]
[320707963,1711524653241,-535.36686935,0.00054794,120]
[320707964,1711524653251,-5385.57,0.00054794,120]
[320707965,1711524653260,-25621.19,0.00054794,120]
[320707966,1711524653269,-202.17885754,0.00054794,120]
[320707967,1711524653278,-151.0,0.00054794,120]
[320707968,1711524653287,-151.0,0.00054794,120]
[320707969,1711524653296,-589.13,0.00054794,120]
[320707970,1711524653306,-151.0,0.00054794,120]
[320707971,1711524653315,-500.0,0.00054794,120]
[320707972,1711524653324,-523.28371851,0.00054794,120]
[320707973,1711524653333,-500.0,0.00054794,120]
[320707974,1711524653343,-500.0,0.00054794,120]
[320707975,1711524653352,-17778.09,0.00054794,120]
[320707976,1711524653362,-500.0,0.00054794,120]
[320707977,1711524653371,-2317.58,0.00054794,120]
[320707978,1711524653381,-500.0,0.00054794,120]
[320707979,1711524653391,-2464.79,0.00054794,120]
[320707980,1711524653400,-2920.24,0.00054794,120]
[320707981,1711524653409,-524.45250268,0.00054794,120]